bitfinex-derivatives/quotes_ETHF0:USTF0_20241102
["timestamp","ask_amount","ask_price","bid_price","bid_amount"]
[1730541454074,1.72162764,2497.7,2497.6,4.11614097]
[1730541454270,1.72162764,2497.7,2497.6,2.89599272]
[1730541454679,1.44127764,2497.7,2497.6,2.89599272]
[1730541454872,1.44127764,2497.7,2497.6,4.39605289]
[1730541455176,1.72162764,2497.7,2497.6,3.17635272]
[1730541455379,1.72162764,2497.7,2497.6,2.89599272]
[1730541456078,1.72162764,2497.7,2497.6,1.3098]
[1730541456270,1.72162764,2497.7,2497.6,2.89505805]
[1730541457071,1.72162764,2497.7,2497.6,1.58525805]
[1730541457283,0.28038,2497.4,2497.3,0.8835]
[1730541457480,1.72165764,2497.4,2497.3,2.46796517]
[1730541457776,1.72165764,2497.4,2497.3,1.49290968]
[1730541459074,1.72165764,2497.4,2497.3,0.8835]
[1730541460868,1.44127764,2497.4,2497.3,0.8835]
[1730541461179,1.44127764,2497.5,2497.4,0.28038]
[1730541463273,1.44127764,2497.5,2497.4,0.88879642]
[1730541463680,1.44127764,2497.5,2497.4,0.88876594]
[1730541463978,1.44127764,2497.5,2497.4,0.28038]
[1730541464878,1.72165764,2497.5,2497.3,1.1639]
[1730541465072,3.2078,2497.6,2497.3,0.8835]
[1730541465073,1.72165764,2497.4,2497.3,0.8835]
[1730541468168,1.44127764,2497.4,2497.3,0.8835]
[1730541468478,1.44127764,2497.4,2497.3,1.1639]
[1730541468870,1.72165764,2497.4,2497.3,1.1639]
[1730541469073,1.44127764,2497.4,2497.3,1.1639]
[1730541473985,1.72165764,2497.4,2497.3,1.1639]
[1730541474281,1.44127764,2497.4,2497.3,1.1639]
[1730541475589,1.44127764,2497.4,2497.3,1.77181551]
[1730541475884,1.44127764,2497.4,2497.3,1.77181953]
[1730541477387,1.44127764,2497.4,2497.3,5.77581953]
[1730541477588,1.44127764,2497.4,2497.3,5.1679]
[1730541477792,1.44127764,2497.4,2497.3,5.77584191]
[1730541480690,1.44127764,2497.5,2497.3,5.49544191]
[1730541480891,1.44127764,2497.5,2497.4,0.28038]
[1730541481190,1.44127764,2497.5,2497.4,4.89237723]
[1730541481392,1.44127764,2497.5,2497.4,4.89238256]
[1730541481589,1.44127764,2497.5,2497.4,4.28438]
[1730541481987,1.44127764,2497.5,2497.4,4.89239391]
[1730541482387,1.44127764,2497.5,2497.4,4.89243209]
[1730541483796,1.44127764,2497.5,2497.4,4.89248932]
[1730541484294,1.44127764,2497.5,2497.4,0.28038]
[1730541486406,1.44127764,2497.5,2497.4,4.28438]
[1730541486703,1.44127764,2497.5,2497.4,4.89263161]
[1730541487400,1.44127764,2497.5,2497.4,4.28438]
[1730541487595,1.44127764,2497.5,2497.4,4.89265844]
[1730541489103,0.4374,2497.8,2497.4,4.61227844]
[1730541489104,1.44127764,2497.7,2497.4,4.61227844]
[1730541489302,1.44127764,2497.7,2497.6,0.28036]
[1730541489511,1.44127764,2497.7,2497.6,0.88863844]
[1730541489812,1.44127764,2497.7,2497.6,0.28036]
[1730541490003,1.44127764,2497.7,2497.6,0.88876657]
[1730541490802,1.44127764,2497.7,2497.6,0.28036]
[1730541490998,1.44127764,2497.7,2497.6,0.88883613]
[1730541494311,1.44127764,2497.7,2497.6,4.89283613]
[1730541494705,1.44127764,2497.7,2497.6,4.28436]
[1730541494912,1.44127764,2497.7,2497.6,5.86714442]
[1730541496309,1.44127764,2497.8,2497.7,0.28035]
[1730541496501,1.44127764,2497.8,2497.7,3.18403442]
[1730541496705,3.6424,2498.2,2497.7,3.18403442]
[1730541496706,1.44127764,2498.0,2497.9,0.28033]
[1730541496901,1.44127764,2498.0,2497.9,4.89229324]
[1730541497102,1.44127764,2498.0,2497.9,5.86653743]
[1730541499410,2.88255528,2498.0,2497.9,1.58300743]
[1730541499617,6.88575528,2498.0,2497.4,0.4543]
[1730541499826,0.28038,2497.5,2497.4,0.28038]
[1730541500409,1.44127764,2497.6,2497.2,4.0933]
[1730541500605,1.44127764,2497.3,2497.2,0.73831]
[1730541501317,1.72167764,2497.3,2497.2,0.73831]
[1730541501507,1.44127764,2497.3,2497.2,0.73831]
[1730541502910,1.88367764,2497.3,2497.2,0.73831]
[1730541504418,2.16407764,2497.3,2497.2,0.73831]
[1730541504616,1.88367764,2497.3,2497.2,0.73831]
[1730541505721,2.16407764,2497.3,2497.2,0.73831]
[1730541506613,1.88367764,2497.3,2497.2,0.73831]
[1730541507019,2.16407764,2497.3,2497.2,0.73831]
[1730541507822,1.88367764,2497.3,2497.2,0.73831]
[1730541508518,2.16407764,2497.3,2497.2,0.73831]
[1730541510520,1.88367764,2497.3,2497.2,0.73831]
[1730541511024,2.16407764,2497.3,2497.2,0.28041]
[1730541512022,1.88367764,2497.3,2497.2,0.28041]
[1730541512421,2.16407764,2497.3,2497.2,0.28041]
[1730541512620,2.16407764,2497.3,2497.2,0.87730817]
[1730541513526,1.88367764,2497.3,2497.2,0.87730817]
[1730541513728,1.88367764,2497.3,2497.2,0.8773002]
[1730541515621,1.88367764,2497.3,2497.2,0.28041]
[1730541515827,1.88367764,2497.3,2497.2,0.87727106]
[1730541521624,1.88367764,2497.3,2497.2,0.28041]
[1730541523830,1.44127764,2497.3,2497.2,0.28041]
[1730541525240,1.44127764,2497.5,2497.4,0.28038]
[1730541525940,1.44127764,2497.5,2497.4,1.17708]
[1730541527438,1.72164764,2497.5,2497.4,1.17708]
[1730541528334,1.44127764,2497.5,2497.4,1.17708]
[1730541528531,1.72164764,2497.5,2497.4,1.17708]
[1730541528730,2.17564764,2497.5,2497.4,1.17708]
[1730541530332,1.89527764,2497.5,2497.4,1.17708]
[1730541530934,2.17564764,2497.5,2497.4,1.17708]
[1730541531343,1.89527764,2497.5,2497.4,1.17708]
[1730541531743,2.17564764,2497.5,2497.4,1.17708]
[1730541532232,1.89527764,2497.5,2497.4,1.17708]
[1730541532636,2.17564764,2497.5,2497.4,1.17708]
[1730541532845,1.89527764,2497.5,2497.4,1.17708]
[1730541534037,5.89927764,2497.5,2497.4,0.28038]
[1730541534345,1.89527764,2497.5,2497.4,0.28038]
[1730541535034,2.17564764,2497.5,2497.4,0.28038]
[1730541536845,0.28038,2497.4,2497.3,0.72879]
[1730541537942,0.28038,2497.4,2497.3,0.4484]
[1730541540348,1.72165764,2497.5,2497.4,0.28038]
[1730541540649,1.72165764,2497.5,2497.4,0.72918]
[1730541540842,1.72165764,2497.5,2497.4,1.19168]
[1730541541241,1.72165764,2497.5,2497.4,0.9113]
[1730541541743,1.44127764,2497.5,2497.4,0.9113]
[1730541541938,1.44127764,2497.5,2497.4,1.19168]
[1730541543146,1.72164764,2497.5,2497.4,1.19168]
[1730541543545,1.44127764,2497.5,2497.4,1.19168]
[1730541544042,1.72164764,2497.5,2497.4,1.19168]
[1730541544441,1.44127764,2497.5,2497.4,1.78905115]
[1730541545145,1.44127764,2497.5,2497.4,2.74479018]
[1730541551155,1.44127764,2497.5,2497.4,3.9401095]
[1730541551358,0.04907764,2497.5,2497.4,3.9401095]
[1730541551558,0.04907764,2497.5,2497.4,3.94070378]
[1730541552153,1.44127764,2497.6,2497.5,0.28037]
[1730541552353,1.44127764,2497.6,2497.5,3.02939378]
[1730541552553,1.44127764,2497.8,2497.7,0.28035]
[1730541552758,1.44127764,2497.8,2497.7,3.02913402]
[1730541552955,1.44127764,2497.8,2497.7,7.03313402]
[1730541553552,1.44127764,2497.9,2497.7,6.75278402]
[1730541553755,1.44127764,2497.9,2497.8,5.48063605]
[1730541554162,1.44127764,2497.9,2497.8,9.48383605]
[1730541554967,1.44127764,2497.9,2497.8,10.67787141]
[1730541555169,1.44127764,2497.9,2497.8,7.93004]
[1730541555361,1.44127764,2497.9,2497.8,9.4822971]
[1730541555559,1.44127764,2497.9,2497.8,7.93004]
[1730541555761,1.44127764,2497.9,2497.8,9.48177432]
[1730541557862,1.44127764,2497.9,2497.8,7.93004]
[1730541558065,1.44127764,2497.9,2497.8,9.48099286]
[1730541558470,1.44127764,2497.9,2497.8,9.48084012]
[1730541558959,1.44127764,2497.9,2497.8,7.93004]
[1730541559159,1.44127764,2497.9,2497.8,9.48073377]
[1730541559364,1.44127764,2497.9,2497.8,8.52646068]
[1730541562677,1.44127764,2497.9,2497.8,8.52617679]
[1730541563481,1.44127764,2498.1,2497.8,8.52617679]
[1730541563676,1.44127764,2498.1,2498.0,0.28032]
[1730541564070,1.44127764,2498.4,2498.0,4.28352]
[1730541564273,1.44127764,2498.4,2498.3,0.28028]
[1730541566269,1.44127764,2498.4,2498.2,0.28029]
[1730541566270,1.72154764,2498.4,2498.2,0.28029]
[1730541566577,2.75987764,2498.3,2498.2,0.28029]
[1730541567681,3.04015764,2498.3,2498.2,0.28029]
[1730541568180,2.75987764,2498.3,2498.2,0.28029]
[1730541575887,3.04015764,2498.3,2498.2,0.28029]
[1730541576084,2.75987764,2498.3,2498.2,0.28029]
[1730541582099,2.33817764,2498.3,2498.2,0.28029]
[1730541584795,1.44127764,2498.7,2498.2,5.72476764]
[1730541585102,1.44127764,2498.7,2498.6,0.28024]
[1730541585398,1.72151764,2498.7,2498.6,0.28024]
[1730541585896,1.44127764,2498.7,2498.6,0.28024]
[1730541586597,1.72151764,2498.7,2498.6,0.28024]
[1730541587597,1.44127764,2498.7,2498.5,0.28025]
[1730541587900,1.90217764,2498.6,2498.5,0.28025]
[1730541594104,5.10997764,2498.6,2498.5,0.28025]
[1730541594303,5.53607764,2498.6,2498.5,0.28025]
[1730541598206,5.81635764,2498.6,2498.5,0.28025]
[1730541598597,5.53607764,2498.6,2498.5,0.28025]
[1730541599499,5.81635764,2498.6,2498.5,0.28025]
[1730541599696,5.53607764,2498.6,2498.5,0.28025]
[1730541600304,5.81635764,2498.6,2498.5,0.28025]
[1730541601306,5.10997764,2498.6,2498.5,0.28025]
[1730541601499,4.64907764,2498.6,2498.5,0.28025]
[1730541602404,4.92935764,2498.6,2498.5,0.28025]
[1730541602604,4.64907764,2498.6,2498.5,0.28025]
[1730541602806,4.92935764,2498.6,2498.5,0.28025]
[1730541603709,1.72155764,2498.6,2498.5,0.28025]
[1730541603903,4.92935764,2498.6,2498.5,0.28025]
[1730541604513,1.72155764,2498.6,2498.5,0.28025]
[1730541604713,4.92935764,2498.6,2498.5,0.28025]
[1730541605103,4.92935764,2498.6,2498.4,0.28029]
[1730541605104,0.28029,2498.5,2498.4,0.28029]
[1730541605305,0.28029,2498.5,2498.4,0.2803]
[1730541605306,2.59706764,2498.5,2498.4,0.2803]
[1730541605506,2.74567764,2498.5,2498.4,0.2803]
[1730541605702,6.74807764,2498.5,2498.4,0.2803]
[1730541606403,2.74567764,2498.5,2498.4,0.2803]
[1730541606805,3.2078,2498.6,2498.2,0.455]
[1730541606806,4.64907764,2498.6,2498.5,0.28029]
[1730541608497,4.64907764,2498.6,2498.5,0.87767345]
[1730541609905,3.2078,2498.6,2498.5,0.87767345]
[1730541610106,3.2078,2498.6,2498.5,1.83349809]
[1730541611409,3.2078,2498.6,2498.5,1.8334072]
[1730541611912,3.2078,2498.7,2498.5,1.55311497]
[1730541612107,3.2078,2498.7,2498.6,1.47385191]
[1730541612311,3.2078,2498.7,2498.6,1.47384758]
[1730541612512,3.2078,2498.7,2498.6,1.75412758]
[1730541613008,0.28027,2498.7,2498.6,1.75412758]
[1730541613609,1.44127764,2498.8,2498.6,0.59734758]
[1730541613917,1.44127764,2498.8,2498.3,0.4461]
[1730541614112,1.44127764,2498.8,2498.4,1.83335904]
[1730541614113,1.44127764,2498.5,2498.4,1.83335904]
[1730541614615,1.44127764,2498.5,2498.4,5.83575904]
[1730541615915,4.19027792,2498.9,2498.4,10.20453668]
[1730541616214,3.6294,2499.0,2498.9,0.28024]
[1730541617116,3.6294,2499.0,2498.6,0.4272]
[1730541617117,0.28025,2498.9,2498.8,0.28025]
[1730541617419,2.16582764,2498.9,2498.8,0.28025]
[1730541617912,1.88557764,2498.9,2498.5,0.4385]
[1730541618216,4.64907764,2498.7,2498.6,0.28027]
[1730541618816,1.44127764,2498.7,2498.6,0.28027]
[1730541621209,4.64907764,2498.7,2498.6,0.28027]
[1730541623019,1.44127764,2498.7,2498.6,0.28027]
[1730541623412,1.44127764,2498.7,2498.6,0.87750206]
[1730541623717,4.64907764,2498.7,2498.6,0.87750206]
[1730541623916,1.44127764,2498.7,2498.6,0.87750206]
[1730541624719,4.64907764,2498.7,2498.6,0.87750206]
[1730541625614,1.44127764,2498.7,2498.6,0.87750206]
[1730541626512,1.44127764,2498.7,2498.6,0.28027]
[1730541626712,2.14954764,2498.7,2498.6,0.87757458]
[1730541627319,1.86927764,2498.7,2498.6,0.87757458]
[1730541629617,3.2078,2498.8,2498.7,0.28027]
[1730541629618,4.64907764,2498.8,2498.7,0.28027]
[1730541629917,4.64907764,2498.8,2498.7,0.87757458]
[1730541630118,4.64907764,2498.8,2498.7,0.87772763]
[1730541631021,1.44127764,2498.8,2498.7,0.87772763]
[1730541631222,4.64907764,2498.8,2498.7,0.87772763]
[1730541632827,1.44127764,2498.8,2498.7,0.87772763]
[1730541633019,4.64907764,2498.8,2498.7,0.87772763]
[1730541633526,4.92933764,2498.8,2498.7,0.87772763]
[1730541633726,4.92933764,2498.8,2498.7,0.28027]
[1730541635424,4.92933764,2498.8,2498.7,0.87775755]
[1730541635623,4.92933764,2498.8,2498.7,0.28027]
[1730541637418,4.64907764,2498.8,2498.7,0.28027]
[1730541637621,4.64907764,2498.8,2498.7,0.87777243]
[1730541637820,4.92933764,2498.8,2498.7,0.87777243]
[1730541638021,4.92933764,2498.8,2498.7,0.28027]
[1730541639531,1.72153764,2498.8,2498.7,0.28027]
[1730541639731,4.92933764,2498.8,2498.7,0.28027]
[1730541640630,1.72153764,2498.8,2498.7,0.28027]
[1730541640827,4.92933764,2498.8,2498.7,0.28027]
[1730541641724,1.44127764,2498.8,2498.5,0.4385]
[1730541641925,3.2078,2498.7,2498.6,0.87779751]
[1730541642121,0.2803,2498.4,2498.3,0.72641]
[1730541642326,0.2803,2498.4,2498.1,0.4606]
[1730541642327,3.2078,2498.4,2498.1,0.4606]
[1730541642524,0.4357,2498.3,2498.2,0.59757276]
[1730541642720,0.4357,2498.3,2498.1,0.74093]
[1730541642925,0.4362,2498.2,2498.1,0.74093]
[1730541643127,0.4362,2498.2,2498.1,1.33852908]
[1730541643730,3.59907528,2498.2,2498.1,0.59759908]
[1730541643938,8.6320532,2498.2,2497.5,0.45]
[1730541644135,1.44127764,2497.6,2497.3,0.4358]
[1730541644429,1.72168764,2497.4,2497.2,0.28043]
[1730541644635,1.44127764,2497.3,2497.2,0.28043]
[1730541647533,1.44127764,2497.3,2497.1,0.45]
[1730541647729,1.44127764,2497.3,2496.7,1.44127764]
[1730541647730,5.44607764,2497.2,2496.5,3.2078]
[1730541648031,3.2078,2497.1,2496.6,0.8724]
[1730541648231,0.463,2497.0,2496.6,0.8724]
[1730541648437,3.48825,2497.1,2496.8,0.28047]
[1730541648628,3.48825,2497.1,2496.6,0.8724]
[1730541648629,3.2078,2497.1,2496.6,0.8724]
[1730541648825,3.48825,2497.1,2496.8,0.28047]
[1730541649434,1.44127764,2496.9,2496.8,0.28047]
[1730541649627,1.44127764,2496.9,2496.6,0.8724]
[1730541649834,4.92956764,2496.7,2496.6,0.8724]
[1730541650239,4.64907764,2496.7,2496.6,1.1529]
[1730541650544,4.64907764,2496.7,2496.6,0.8724]
[1730541651030,4.92956764,2496.7,2496.6,0.8724]
[1730541652335,4.64907764,2496.7,2496.6,0.8724]
[1730541652538,3.2078,2496.7,2496.6,0.8724]
[1730541654235,3.2078,2496.7,2496.6,1.1529]
[1730541655938,3.48826,2497.0,2496.8,0.28048]
[1730541657144,3.48827,2497.0,2496.7,0.28049]
[1730541657351,0.28047,2496.9,2496.7,0.28049]
[1730541658834,3.48826,2497.0,2496.8,0.28048]
[1730541659042,0.28047,2496.9,2496.7,0.28049]
[1730541659838,3.2078,2497.0,2496.6,0.8724]
[1730541660041,3.2078,2497.0,2496.7,0.28048]
[1730541660244,0.28047,2496.9,2496.7,0.28048]
[1730541660755,0.28049,2496.8,2496.6,1.15289]
[1730541660945,3.2078,2496.7,2496.6,1.15289]
[1730541661664,3.12739293,2497.1,2497.0,0.28046]
[1730541661665,3.48825,2497.1,2497.0,0.28046]
[1730541661953,0.28046,2497.0,2496.9,0.28047]
[1730541662148,3.48825,2497.1,2497.0,0.4468]
[1730541664047,6.61564293,2497.1,2497.0,0.4468]
[1730541665654,10.33999293,2497.1,2496.6,0.4458]
[1730541665849,0.463,2497.2,2496.6,0.7263]
[1730541665850,3.48829,2496.8,2496.6,0.7263]
[1730541666750,3.48829,2496.8,2496.7,0.28049]
[1730541666950,3.48829,2496.8,2496.6,0.7263]
[1730541667250,3.2078,2496.8,2496.6,0.7263]
[1730541667450,0.28049,2496.7,2496.6,0.7263]
[1730541667754,3.48829,2496.8,2496.6,0.7263]
[1730541668347,3.48829,2496.8,2496.6,0.4458]
[1730541668550,3.48828,2496.8,2496.7,0.28049]
[1730541668751,0.28048,2496.8,2496.7,0.28049]
[1730541668961,3.48828,2496.8,2496.7,0.28049]
[1730541670554,0.28048,2496.8,2496.7,0.28049]
[1730541670760,3.48828,2496.8,2496.7,0.28049]
[1730541672056,3.48828,2496.8,2496.6,0.7263]
[1730541672459,1.44331817,2496.7,2496.6,0.7263]
[1730541673461,1.72380817,2496.7,2496.6,0.7263]
[1730541673859,1.72380817,2496.7,2496.6,0.4458]
[1730541674253,1.86961817,2496.7,2496.5,0.4313]
[1730541674452,0.2805,2496.6,2496.5,0.71181]
[1730541674650,0.2805,2496.6,2496.5,0.4313]
[1730541676856,0.2805,2496.6,2496.5,0.71181]
[1730541677254,0.2805,2496.6,2496.5,0.4313]
[1730541677455,3.4883,2496.6,2496.5,0.4313]
[1730541677654,3.4883,2496.6,2496.4,0.28051]
[1730541677655,0.28051,2496.5,2496.4,0.28051]
[1730541677855,1.72382817,2496.5,2496.4,0.28051]
[1730541680166,1.44331817,2496.5,2496.4,0.28051]
[1730541681367,1.72382817,2496.5,2496.4,0.28051]
[1730541681955,1.72382817,2496.5,2496.3,0.73993]
[1730541682562,1.72382817,2496.5,2496.4,0.28052]
[1730541683263,1.44331817,2496.5,2496.3,0.4594]
[1730541683467,0.28052,2496.4,2496.3,0.73993]
[1730541683959,1.72383817,2496.5,2496.4,0.28052]
[1730541685367,1.72382817,2496.5,2496.4,0.28052]
[1730541686864,1.72383817,2496.5,2496.4,0.28052]
[1730541687574,1.44331817,2496.5,2496.4,0.28052]
[1730541688272,1.44331817,2496.5,2496.4,0.8724798]
[1730541688475,1.72382817,2496.5,2496.4,0.8724798]
[1730541689268,1.44331817,2496.5,2496.4,1.8206596]
[1730541689867,1.72382817,2496.5,2496.4,1.8206596]
[1730541690466,1.72382817,2496.5,2496.4,1.82204581]
[1730541690673,1.44331817,2496.5,2496.4,1.82204581]
[1730541690970,1.44331817,2496.5,2496.4,0.28052]
[1730541691167,1.44331817,2496.5,2496.4,1.8220451]
[1730541691368,1.44331817,2496.5,2496.4,0.28052]
[1730541691369,1.72382817,2496.5,2496.4,0.28052]
[1730541691572,1.72382817,2496.5,2496.4,1.82250084]
[1730541692769,1.72382817,2496.5,2496.4,0.59306955]
[1730541692974,1.72382817,2496.5,2496.4,1.54197859]
[1730541693175,1.72382817,2496.5,2496.4,0.59306955]
[1730541694066,1.44331817,2496.5,2496.3,0.73993]
[1730541694268,0.28052,2496.4,2496.3,0.73993]
[1730541694472,0.28052,2496.4,2496.3,1.33300083]
[1730541694673,1.44331817,2496.5,2496.3,2.28191509]
[1730541694973,1.72383817,2496.5,2496.4,0.59307083]
[1730541695182,1.72383817,2496.5,2496.4,0.87359083]
[1730541695565,1.72383817,2496.5,2496.4,0.59307083]
[1730541695769,7.44651719,2496.5,2495.4,4.25870477]
[1730541695971,1.44331817,2495.5,2495.4,0.28064]
[1730541696275,1.44331817,2495.6,2495.5,0.28063]
[1730541696474,1.44331817,2495.6,2495.5,5.66097345]
[1730541697869,1.44331817,2495.6,2495.5,0.70473]
[1730541699274,1.44331817,2495.6,2495.5,0.4241]
[1730541699776,1.44331817,2495.6,2495.5,0.70473]
[1730541700371,1.44331817,2495.6,2495.1,3.2078]
[1730541700372,0.28063,2495.5,2495.3,0.28064]
[1730541700574,2.88663634,2495.4,2495.1,3.2078]
[1730541700769,1.44331817,2495.2,2495.1,3.2078]
[1730541701070,1.72397817,2495.2,2495.1,3.2078]
[1730541701478,2.17527817,2495.2,2495.1,3.2078]
[1730541701779,1.89461817,2495.2,2495.1,3.2078]
[1730541701982,2.17527817,2495.2,2495.1,3.2078]
[1730541702378,1.89461817,2495.2,2495.1,3.48847]
[1730541702677,1.44331817,2495.4,2495.1,7.2158]
[1730541702878,1.44331817,2495.4,2495.3,0.28065]
[1730541704580,3.12863775,2495.7,2495.6,0.28061]
[1730541707076,7.13583775,2495.7,2495.6,0.28061]
[1730541707580,7.41644775,2495.7,2495.1,4.75047]
[1730541707771,3.12863775,2495.7,2495.6,0.28061]
[1730541711974,3.12863775,2495.7,2495.2,0.70164]
[1730541711975,7.13583775,2495.7,2494.6,4.78415716]
[1730541712179,4.9185,2495.8,2494.6,4.78415716]
[1730541712180,3.12863775,2495.1,2494.6,3.2078]
[1730541712587,4.02783775,2495.1,2495.0,0.28068]
[1730541712785,4.02783775,2495.1,2494.6,3.2078]
[1730541712786,4.30850775,2495.1,2494.9,0.28069]
[1730541712980,4.30850775,2495.1,2494.7,0.28072]
[1730541713286,4.30850775,2495.1,2494.9,0.28069]
[1730541713488,0.28069,2495.0,2494.8,0.2807]
[1730541716990,3.48849,2495.0,2494.9,0.28069]
[1730541717186,3.48849,2495.0,2494.8,0.2807]
[1730541717587,0.28069,2495.0,2494.8,0.2807]
[1730541717787,3.48849,2495.0,2494.8,0.2807]
[1730541718278,3.48849,2495.0,2494.9,0.28069]
[1730541718481,7.49648,2495.0,2494.9,0.28069]
[1730541718885,7.49648,2495.0,2494.8,0.2807]
[1730541719093,3.48848,2495.0,2494.8,0.2807]
[1730541719292,0.28068,2495.0,2494.8,0.2807]
[1730541719487,3.48848,2495.0,2494.8,0.2807]
[1730541720091,3.48849,2495.0,2494.8,0.2807]
[1730541720387,3.2078,2495.0,2494.7,0.4236]
[1730541720591,3.2078,2495.0,2494.8,0.2807]
[1730541720889,0.28069,2494.9,2494.8,0.2807]
[1730541721383,3.48849,2495.0,2494.8,0.2807]
[1730541722190,0.28069,2495.0,2494.8,0.2807]
[1730541722989,3.2078,2495.0,2494.8,0.2807]
[1730541723190,0.28069,2494.9,2494.8,0.2807]
[1730541723487,0.28069,2494.9,2494.7,0.4236]
[1730541723488,3.40932775,2494.9,2494.7,0.4236]
[1730541723685,3.40932775,2494.9,2494.7,0.70431]
[1730541723886,3.40932775,2494.9,2494.7,0.28071]
[1730541724087,3.40932775,2494.9,2494.5,0.8914]
[1730541724285,3.40932775,2494.9,2494.8,0.2807]
[1730541724693,7.41732775,2494.9,2494.7,0.28071]
[1730541724888,3.12863775,2494.9,2494.5,0.8914]
[1730541725097,6.33643775,2494.6,2494.5,1.17213]
[1730541726397,7.51630775,2495.1,2495.0,0.28068]
[1730541727389,6.33643775,2495.1,2495.0,0.28068]
[1730541733990,3.12863775,2495.1,2495.0,0.28068]
[1730541734598,1.44429023,2495.1,2495.0,0.28068]
[1730541735996,4.65209023,2495.1,2495.0,0.28068]
[1730541740902,1.44429023,2495.1,2495.0,0.28068]
[1730541742604,1.44429023,2495.1,2495.0,0.86818867]
[1730541743001,1.44429023,2495.1,2495.0,0.28068]
[1730541743200,1.44429023,2495.1,2495.0,0.86819215]
[1730541746409,1.44429023,2495.1,2495.0,0.28068]
[1730541746710,1.44429023,2495.1,2495.0,0.86855986]
[1730541750107,1.44429023,2495.1,2495.0,0.28068]
[1730541750411,1.44429023,2495.1,2495.0,0.86860633]
[1730541754113,1.44429023,2495.1,2495.0,0.86895328]
[1730541756408,1.44429023,2495.1,2495.0,1.81082042]
[1730541756618,1.44429023,2495.1,2495.0,0.86895328]
[1730541756805,1.44429023,2495.1,2495.0,1.81082212]
[1730541757207,1.44429023,2495.2,2495.0,1.53015209]
[1730541757414,1.44429023,2495.4,2495.3,0.28065]
[1730541757606,1.44429023,2495.4,2495.3,0.86892328]
[1730541758010,1.44429023,2495.4,2495.3,0.86945679]
[1730541761919,1.44429023,2495.4,2495.3,0.28065]
[1730541762123,1.44429023,2495.4,2495.3,0.8658584]
[1730541763221,1.44429023,2495.4,2495.3,1.80210348]
[1730541763417,1.44429023,2495.4,2495.3,5.80930348]
[1730541766029,1.44429023,2495.4,2495.3,5.79987855]
[1730541766626,1.44429023,2495.4,2495.3,5.79978723]
[1730541767332,1.44429023,2495.4,2495.3,4.86939944]
[1730541767728,1.44429023,2495.4,2495.3,5.7996985]
[1730541767932,1.44429023,2495.4,2495.3,1.5118485]
[1730541768131,1.44429023,2495.4,2495.3,1.79238488]
[1730541768930,1.44429023,2495.4,2495.3,5.79958488]
[1730541769134,1.44429023,2495.4,2495.3,1.79238488]
[1730541769331,1.44429023,2495.4,2495.3,2.25118488]
[1730541769826,1.44429023,2495.4,2495.3,2.25093832]
[1730541770024,1.44429023,2495.4,2495.3,6.25813832]
[1730541770325,1.44429023,2495.6,2495.5,0.28063]
[1730541770530,1.44429023,2495.6,2495.5,0.86197166]
[1730541773536,1.44429023,2495.6,2495.5,0.86195122]
[1730541777732,1.44429023,2495.6,2495.5,0.86185995]
[1730541779732,0.4266,2495.7,2495.5,0.58122995]
[1730541779931,0.4266,2495.7,2495.6,0.28061]
[1730541780138,0.4266,2495.7,2495.6,0.86180912]
[1730541780636,0.4266,2495.7,2495.6,0.28061]
[1730541780832,0.4266,2495.7,2495.6,0.86180382]
[1730541781232,0.4266,2495.7,2495.6,0.28061]
[1730541781839,0.4266,2495.7,2495.6,0.86179471]
[1730541782136,0.4266,2495.7,2495.6,0.28061]
[1730541785036,0.8806,2495.7,2495.6,0.28061]
[1730541790241,0.8806,2495.7,2495.6,0.86191596]
[1730541790445,0.8806,2495.7,2495.6,0.28061]
[1730541791041,0.8806,2495.7,2495.6,0.8619201]
[1730541791239,0.8806,2495.7,2495.6,0.86194342]
[1730541791646,0.8806,2495.7,2495.6,0.28061]
[1730541792743,0.8806,2495.7,2495.6,0.86198243]
[1730541794958,0.8806,2495.7,2495.6,0.86206123]
[1730541800947,1.1612,2495.7,2495.6,0.86206123]
[1730541801153,0.8806,2495.7,2495.6,0.86206123]
[1730541803756,1.1612,2495.7,2495.6,0.58145123]
[1730541804359,0.8806,2495.7,2495.6,0.86206123]
[1730541805353,1.1612,2495.7,2495.6,0.86206123]
[1730541806356,1.1612,2495.7,2495.6,0.86313805]
[1730541808155,4.369,2495.7,2495.6,0.86313805]
[1730541808347,4.369,2495.7,2495.6,1.795485]
[1730541809058,1.1612,2495.7,2495.6,1.795485]
[1730541809251,4.369,2495.7,2495.6,0.86313805]
[1730541809953,4.369,2495.7,2495.6,1.79548557]
[1730541810149,4.369,2495.7,2495.6,1.79567364]
[1730541810756,4.369,2495.7,2495.6,0.86332678]
[1730541812660,4.369,2495.7,2495.6,0.86332341]
[1730541816057,1.1612,2495.7,2495.6,0.86332341]
[1730541816256,4.369,2495.7,2495.6,0.86332341]
[1730541816854,4.369,2495.7,2495.6,0.58271341]
[1730541817049,8.3762,2495.7,2495.6,0.58271341]
[1730541817264,0.28066,2495.2,2495.1,0.70036]
[1730541817455,4.93275023,2495.2,2495.1,0.4197]
[1730541817650,8.94075023,2495.2,2495.1,0.4197]
[1730541817963,8.94075023,2495.2,2495.1,0.70037]
[1730541818159,8.94075023,2495.2,2495.1,0.4197]
[1730541820068,0.28068,2495.0,2494.9,0.8522]
[1730541820258,1.72497023,2495.0,2494.9,0.4254]
[1730541821465,1.72497023,2495.0,2494.7,0.73421]
[1730541821466,1.44429023,2495.0,2494.7,0.73421]
[1730541821668,4.93279023,2494.8,2494.7,0.73421]
[1730541822556,4.93279023,2494.8,2494.7,0.4535]
[1730541823664,8.94159023,2494.8,2494.7,0.4535]
[1730541823863,4.93279023,2494.8,2494.7,0.4535]
[1730541824059,8.94159023,2494.8,2494.7,0.4535]
[1730541824261,4.93279023,2494.8,2494.7,0.4535]
[1730541824466,8.94159023,2494.8,2494.7,0.4535]
[1730541824658,4.93279023,2494.8,2494.7,0.4535]
[1730541824868,8.94159023,2494.8,2494.7,0.4535]
[1730541825758,3.2078,2494.8,2494.7,0.4535]
[1730541825960,3.2078,2494.8,2494.7,0.73422]
[1730541826161,1.72498023,2495.0,2494.7,0.4535]
[1730541826365,1.72498023,2495.0,2494.8,0.4276]
[1730541826557,1.44429023,2495.0,2494.9,0.28069]
[1730541826757,1.44429023,2495.0,2494.8,0.7083]
[1730541826961,0.28069,2494.9,2494.8,0.4276]
[1730541827366,0.28069,2494.9,2494.8,0.7083]